bitfinex/quotes_BTCUSD_20250114
["timestamp","ask_amount","ask_price","bid_price","bid_amount"]
[1736847560964,0.23031027,96790.0,96789.0,1.51505869]
[1736847562395,0.23031027,96790.0,96789.0,1.51305869]
[1736847562594,0.22931027,96790.0,96789.0,1.50905869]
[1736847562811,0.22931027,96790.0,96789.0,1.51005869]
[1736847563019,0.02367827,96790.0,96789.0,1.51905869]
[1736847563224,0.02267827,96790.0,96789.0,1.50905869]
[1736847563596,0.02367827,96790.0,96789.0,1.51605869]
[1736847563818,0.02367827,96790.0,96789.0,1.51005869]
[1736847563959,0.02267827,96790.0,96789.0,1.50905869]
[1736847564481,0.02267827,96790.0,96789.0,1.51005869]
[1736847564693,0.22931027,96790.0,96789.0,1.51001869]
[1736847564908,0.22931027,96790.0,96789.0,1.50293869]
[1736847565080,0.22931027,96790.0,96789.0,1.51001869]
[1736847565283,0.23031027,96790.0,96789.0,1.50893869]
[1736847565483,0.22931027,96790.0,96789.0,1.50293869]
[1736847565954,0.23031027,96790.0,96789.0,1.50793869]
[1736847566163,0.22931027,96790.0,96789.0,1.50293869]
[1736847566391,0.22931027,96790.0,96789.0,1.50893869]
[1736847566594,0.43453719,96790.0,96789.0,1.50893869]
[1736847566748,0.43453719,96790.0,96789.0,0.00793869]
[1736847566952,0.43453719,96790.0,96789.0,0.00893869]
[1736847567182,0.43453719,96790.0,96789.0,1.50893869]
[1736847567586,0.49969593,96790.0,96789.0,1.50893869]
[1736847567785,0.43453719,96790.0,96789.0,1.50893869]
[1736847567950,0.43453719,96790.0,96789.0,0.00893869]
[1736847569181,0.43353719,96790.0,96789.0,0.00293869]
[1736847569363,0.43353719,96790.0,96789.0,0.00193869]
[1736847569567,0.61062116,96790.0,96789.0,0.00193869]
[1736847569774,0.76062116,96790.0,96789.0,0.00193869]
[1736847569990,0.76162116,96790.0,96789.0,0.00393869]
[1736847570394,0.76062116,96790.0,96789.0,0.00193869]
[1736847570793,0.76262116,96790.0,96789.0,0.00193869]
[1736847572020,0.76262116,96790.0,96778.0,0.00179319]
[1736847572021,0.32933427,96779.0,96778.0,0.00179319]
[1736847572239,0.32933427,96779.0,96732.0,0.13511418]
[1736847572240,0.12267827,96754.0,96737.0,0.00886983]
[1736847572445,0.02267827,96752.0,96737.0,0.00178983]
[1736847572610,0.02267827,96752.0,96751.0,0.00228814]
[1736847573463,0.02267827,96752.0,96751.0,1.50228814]
[1736847574116,0.02367827,96752.0,96751.0,1.50728814]
[1736847574337,0.001,96752.0,96751.0,1.50728814]
[1736847574548,0.02367827,96752.0,96751.0,1.6627342]
[1736847574763,0.206679,96769.0,96751.0,1.6627342]
[1736847574963,0.206679,96769.0,96751.0,0.3694482]
[1736847575447,0.206684,96766.0,96751.0,0.1577342]
[1736847575633,0.206684,96766.0,96751.0,0.13886814]
[1736847575831,0.001,96752.0,96751.0,0.37458414]
[1736847576034,0.02087786,96774.0,96759.0,0.206698]
[1736847576235,0.02087786,96774.0,96760.0,0.22731848]
[1736847576558,0.02087786,96774.0,96773.0,1.5]
[1736847577344,0.1,96801.0,96774.0,0.0474]
[1736847577549,0.30661,96801.0,96780.0,0.12309156]
[1736847577724,0.1,96805.0,96781.0,0.00708]
[1736847577930,0.1,96805.0,96781.0,0.11130692]
[1736847578295,0.1,96806.0,96791.0,0.0828]
[1736847578501,0.2074385,96813.0,96791.0,0.0828]
[1736847578502,0.1,96801.0,96791.0,0.0828]
[1736847578617,0.1,96802.0,96791.0,0.0828]
[1736847578825,0.206621,96796.0,96791.0,0.0829456]
[1736847579027,0.1,96802.0,96791.0,0.0829456]
[1736847579231,0.206624,96794.0,96791.0,0.0829456]
[1736847579450,0.413248,96794.0,96792.0,0.00708]
[1736847579677,0.413248,96794.0,96793.0,0.00708]
[1736847579895,0.206624,96794.0,96793.0,0.00708]
[1736847580108,0.206624,96794.0,96791.0,0.0879456]
[1736847580391,0.206624,96794.0,96791.0,0.0011456]
[1736847580615,0.207624,96794.0,96792.0,0.007]
[1736847581337,0.207624,96794.0,96792.0,0.01408]
[1736847581578,0.1,96793.0,96792.0,0.007]
[1736847581969,0.1,96793.0,96791.0,0.0011456]
[1736847581970,0.1,96792.0,96791.0,0.0001456]
[1736847582219,0.306628,96792.0,96791.0,0.0011456]
[1736847582436,0.306628,96792.0,96791.0,0.0081456]
[1736847582662,0.306628,96792.0,96791.0,0.0001456]
[1736847583524,0.306628,96792.0,96791.0,0.0021456]
[1736847583525,0.48284232,96792.0,96791.0,0.0021456]
[1736847584024,0.41085492,96792.0,96791.0,0.0021456]
[1736847585549,0.306628,96792.0,96791.0,0.0021456]
[1736847586164,0.206628,96792.0,96791.0,0.0021456]
[1736847586373,0.306628,96792.0,96791.0,0.0021456]
[1736847587586,0.206628,96792.0,96791.0,0.0021456]
[1736847588124,0.306628,96792.0,96791.0,0.0021456]
[1736847590842,0.48387688,96792.0,96791.0,0.0021456]
[1736847591442,0.41085492,96792.0,96791.0,0.0021456]
[1736847591971,0.41085492,96792.0,96791.0,0.0001456]
[1736847592182,0.41185492,96792.0,96791.0,0.0011456]
[1736847592522,0.41085492,96792.0,96791.0,0.0001456]
[1736847592728,0.41085492,96792.0,96791.0,0.0011456]
[1736847592941,0.41185492,96792.0,96791.0,0.0011456]
[1736847593145,0.41185492,96792.0,96791.0,0.0001456]
[1736847593386,0.41085492,96792.0,96791.0,0.0001456]
[1736847593562,0.41685492,96792.0,96791.0,0.0011456]
[1736847593776,0.41685492,96792.0,96791.0,0.00293858]
[1736847594003,0.41770872,96792.0,96791.0,0.00293858]
[1736847594777,0.41370872,96792.0,96791.0,0.00193858]
[1736847595197,0.41370872,96792.0,96791.0,0.00293858]
[1736847595493,0.41170872,96792.0,96791.0,0.00293858]
[1736847595719,0.41270872,96792.0,96791.0,0.00293858]
[1736847596148,0.41270872,96792.0,96791.0,0.00193858]
[1736847596149,0.0008538,96792.0,96791.0,0.00193858]
[1736847596348,0.0028538,96792.0,96791.0,0.00193858]
[1736847596814,0.0028538,96792.0,96791.0,0.00929858]
[1736847596957,0.0028538,96792.0,96791.0,0.09309858]
[1736847597155,0.0028538,96792.0,96791.0,1.59309858]
[1736847598070,0.0008535,96813.0,96793.0,0.619878]
[1736847598350,0.02099061,96838.0,96816.0,0.2558]
[1736847598585,0.09221273,96860.0,96835.0,0.206536]
[1736847598829,0.09221273,96860.0,96840.0,0.12309156]
[1736847599091,0.1,96872.0,96841.0,0.0474]
[1736847599316,0.02073788,96870.0,96850.0,0.12309156]
[1736847599804,0.00049602,96870.0,96851.0,0.0828]
[1736847600037,0.002,96860.0,96851.0,0.08266954]
[1736847601349,0.002,96860.0,96859.0,1.5]
[1736847601686,0.00049602,96870.0,96859.0,1.5]
[1736847601887,0.003,96868.0,96859.0,1.5]
[1736847602137,0.003,96868.0,96851.0,0.08266954]
[1736847602616,0.003,96868.0,96863.0,1.5]
[1736847603003,0.00149602,96870.0,96865.0,0.252472]
[1736847603208,0.00149602,96870.0,96867.0,0.206468]
[1736847603415,0.00049602,96870.0,96869.0,0.206464]
[1736847603651,0.00049602,96870.0,96869.0,1.83369092]
[1736847603853,0.00049602,96870.0,96869.0,2.39930292]
[1736847604074,0.0008529,96876.0,96875.0,0.206451]
[1736847604278,0.0023528,96888.0,96886.0,0.206428]
[1736847604483,0.0023528,96888.0,96886.0,0.31065492]
[1736847604686,0.0023528,96888.0,96886.0,0.38785492]
[1736847604901,0.0023528,96888.0,96886.0,1.88785492]
[1736847605114,0.0023528,96888.0,96886.0,1.89521492]
[1736847605327,0.00075541,96906.0,96896.0,0.206406]
[1736847605530,0.00075541,96906.0,96896.0,0.38783292]
[1736847605736,0.00075541,96906.0,96896.0,0.44260259]
[1736847605943,0.00075541,96906.0,96896.0,0.41083292]
[1736847606167,0.00075541,96906.0,96896.0,0.41819292]
[1736847606373,0.00075541,96906.0,96897.0,0.023]
[1736847606586,0.00075541,96906.0,96903.0,0.229391]
[1736847606790,0.00075541,96906.0,96903.0,0.33361792]
[1736847607236,0.00075541,96906.0,96903.0,0.44258759]
[1736847607428,0.00075541,96906.0,96903.0,2.98350192]
[1736847607630,0.00075541,96906.0,96905.0,0.229387]
[1736847607838,0.00088338,96906.0,96905.0,2.85210692]
[1736847608075,0.00088338,96906.0,96905.0,2.78335492]
[1736847608424,0.00088338,96906.0,96905.0,2.77769559]
[1736847608634,0.0008545,96910.0,96907.0,0.206383]
[1736847608837,0.0008545,96910.0,96909.0,0.502579]
[1736847609081,0.0008545,96910.0,96909.0,3.06634192]
[1736847609293,0.0008545,96910.0,96909.0,3.28280792]
[1736847609435,0.00012571,96912.0,96911.0,0.356374]
[1736847609634,0.05,96916.0,96915.0,0.15]
[1736847609837,0.05114721,96932.0,96923.0,0.206349]
[1736847610051,0.05114721,96932.0,96923.0,1.73973192]
[1736847610254,0.05114721,96932.0,96923.0,1.85233992]
[1736847610627,0.05114721,96932.0,96923.0,1.86458692]
[1736847610828,0.03216577,96935.0,96926.0,0.15]
[1736847611040,0.0643557,96961.0,96925.0,0.356345]
[1736847611041,0.0152104,96961.0,96957.0,0.206275]
[1736847611291,0.0152104,96961.0,96927.0,3.98373551]
[1736847611292,4.25893893,97000.0,96960.0,1.60422692]
[1736847611488,4.25893893,97000.0,96979.0,0.20623]
[1736847611721,4.25893893,97000.0,96979.0,0.31777692]
[1736847611951,4.25893893,97000.0,96980.0,0.023]
[1736847612150,4.25893893,97000.0,96980.0,0.21174692]
[1736847612358,4.25893893,97000.0,96980.0,0.18142692]
[1736847612531,0.00214752,96981.0,96980.0,1.60422692]
[1736847612967,0.00214752,96981.0,96980.0,1.61154692]
[1736847613372,0.00214752,96981.0,96980.0,0.00732]
[1736847613618,0.00214752,96981.0,96980.0,0.00932]
[1736847613835,0.00214752,96981.0,96980.0,0.002]
[1736847614029,0.20837252,96981.0,96980.0,0.002]
[1736847614819,0.00214752,96981.0,96966.0,0.00732]
[1736847615096,0.00214752,96981.0,96950.0,0.18440491]
[1736847615097,0.306232,96978.0,96950.0,0.18440491]
[1736847615243,0.206277,96957.0,96951.0,0.10422692]
[1736847615466,0.206253,96969.0,96952.0,0.00732]
[1736847615667,0.206268,96961.0,96952.0,0.00732]
[1736847616327,0.1,96978.0,96952.0,0.00732]
[1736847616596,0.206266,96962.0,96953.0,0.00732]
[1736847616766,0.206268,96961.0,96953.0,1.50732]
[1736847616977,0.206279,96956.0,96953.0,1.5]
[1736847617180,0.206279,96956.0,96951.0,0.00732]
[1736847617381,0.2063,96947.0,96946.0,0.00732]
[1736847617590,0.2063,96947.0,96946.0,1.50732]
[1736847618134,0.20617573,96947.0,96946.0,1.50732]
[1736847618339,0.1,96967.0,96946.0,1.50732]
[1736847618340,0.18440491,96970.0,96946.0,1.60422692]
[1736847618557,0.1,96968.0,96946.0,1.50732]
[1736847618793,0.206294,96949.0,96946.0,1.50732]
[1736847618998,0.206294,96949.0,96946.0,1.51532]
[1736847619268,0.206285,96953.0,96946.0,1.50932]
[1736847619460,0.206281,96955.0,96946.0,1.50932]
[1736847619665,0.18440491,96960.0,96946.0,1.5]
[1736847619908,0.1,96968.0,96946.0,1.5]
[1736847620115,0.206288,96952.0,96946.0,1.5]
[1736847620530,0.206288,96952.0,96947.0,0.00732]
[1736847621108,0.206298,96947.0,96946.0,1.501]
[1736847621312,0.206298,96947.0,96946.0,1.508]
[1736847621521,0.206298,96947.0,96946.0,1.501]
[1736847621720,0.206288,96952.0,96946.0,1.5]
[1736847621921,0.00134372,96969.0,96952.0,0.206287]
[1736847622124,0.00134372,96969.0,96947.0,0.11022692]
[1736847622125,0.206265,96963.0,96949.0,0.206293]
[1736847622328,0.206265,96963.0,96950.0,0.10422692]
[1736847622678,0.206273,96959.0,96950.0,0.10422692]
[1736847622885,0.18440491,96960.0,96950.0,0.00732]
[1736847623086,0.206287,96952.0,96951.0,1.5]
[1736847624434,0.206272,96959.0,96951.0,1.5]
[1736847624667,0.206287,96952.0,96951.0,1.5]
[1736847624801,0.001,96963.0,96951.0,1.5]
[1736847625033,0.206253,96968.0,96951.0,0.10422692]
[1736847625217,0.206253,96968.0,96951.0,0.10522692]
[1736847625418,0.206253,96968.0,96965.0,1.5]
[1736847626038,0.412506,96968.0,96965.0,1.5]
[1736847626312,0.413506,96968.0,96965.0,1.5]
[1736847626485,0.412506,96968.0,96965.0,1.5]
[1736847626941,0.412506,96968.0,96951.0,0.10422692]
[1736847627142,0.206263,96964.0,96951.0,0.10422692]
[1736847627709,0.00134372,96969.0,96952.0,0.0072]
[1736847627919,0.206263,96964.0,96953.0,0.0072]
[1736847628120,0.206253,96968.0,96954.0,0.00716]
[1736847628323,0.00134372,96969.0,96954.0,0.11138692]
[1736847628524,0.00134372,96969.0,96965.0,1.506]
[1736847628844,0.00134372,96969.0,96955.0,0.10422692]
[1736847629047,0.00134372,96969.0,96956.0,0.206279]
[1736847629274,0.00134372,96969.0,96968.0,1.5]
[1736847630596,0.00134372,96969.0,96968.0,1.508]
[1736847630800,0.00134372,96969.0,96968.0,1.51616]
[1736847631566,0.00134372,96969.0,96968.0,1.64338692]
[1736847631771,0.00134372,96969.0,96968.0,1.51616]
[1736847631985,0.00134372,96969.0,96968.0,1.50816]
[1736847632361,0.00134372,96969.0,96968.0,1.51516]
[1736847632584,0.00134372,96969.0,96968.0,1.63538692]
[1736847632826,0.00134372,96969.0,96968.0,1.63438692]
[1736847633067,0.00134372,96969.0,96968.0,1.64238692]
[1736847633484,0.00134372,96969.0,96968.0,1.63538692]
[1736847633709,0.00134372,96969.0,96968.0,1.64338692]
[1736847633907,0.00134372,96969.0,96968.0,1.535]
[1736847634113,0.00134372,96969.0,96968.0,0.012]
[1736847634471,0.00134372,96969.0,96968.0,0.009]
[1736847635323,0.00134372,96969.0,96948.0,0.023]
[1736847635550,0.20759472,96969.0,96968.0,0.009]
[1736847635728,0.20626,96965.0,96959.0,0.00716]
[1736847635887,0.206253,96968.0,96959.0,0.00716]
[1736847636091,0.20627,96960.0,96959.0,0.00716]
[1736847636433,0.20627,96960.0,96959.0,1.50716]
[1736847636637,0.206267,96962.0,96959.0,1.50716]
[1736847636850,0.206255,96967.0,96959.0,1.50716]
[1736847637061,0.206262,96964.0,96959.0,1.50716]
[1736847637489,0.206262,96964.0,96959.0,1.50816]
[1736847637691,0.20759472,96969.0,96959.0,1.50816]
[1736847637905,0.206262,96964.0,96959.0,1.50816]
[1736847638323,0.206262,96964.0,96959.0,1.51516]
[1736847638733,0.206262,96964.0,96959.0,1.50816]
[1736847638946,0.206262,96964.0,96959.0,1.51016]
[1736847639122,0.20627,96961.0,96959.0,1.51016]
[1736847639303,0.20627,96961.0,96959.0,1.50816]
[1736847639515,0.20627,96961.0,96959.0,1.51116]
[1736847639979,0.20627,96961.0,96959.0,1.50716]
[1736847640199,0.20627,96961.0,96959.0,1.51016]
[1736847640413,0.20627,96961.0,96959.0,1.503]
[1736847640624,0.62438012,96960.0,96959.0,0.003]
[1736847640793,0.406296,96948.0,96947.0,0.00179004]
[1736847640993,0.406296,96948.0,96898.0,0.0757]
[1736847640994,0.1,96935.0,96917.0,0.13546689]
[1736847641244,0.206336,96929.0,96928.0,1.5]
[1736847641695,0.206336,96929.0,96917.0,0.13546689]
[1736847641696,0.20636,96918.0,96917.0,0.13546689]
[1736847642386,0.1,96924.0,96890.0,0.13546689]
[1736847642609,0.18440491,96910.0,96905.0,1.5]
[1736847642823,0.1,96912.0,96905.0,1.5]
[1736847643028,0.10422692,96911.0,96905.0,1.5]
[1736847643245,0.206417,96892.0,96890.0,0.0001456]
[1736847644583,0.306373,96912.0,96890.0,0.0001456]
[1736847644584,0.206414,96893.0,96890.0,0.0001456]
[1736847644784,0.206407,96896.0,96880.0,0.023]
[1736847644986,0.206417,96892.0,96880.0,0.023]
[1736847645361,0.206417,96892.0,96890.0,0.001]
[1736847645552,0.206417,96892.0,96891.0,1.5]
[1736847646955,0.206417,96892.0,96891.0,1.503]
[1736847647682,0.206407,96896.0,96891.0,1.503]
[1736847647922,0.412814,96896.0,96891.0,1.503]
[1736847648143,0.206407,96896.0,96891.0,0.003]
[1736847648570,0.206407,96896.0,96895.0,1.5]
[1736847649194,0.02081857,96914.0,96896.0,0.023]
[1736847649691,0.206375,96911.0,96898.0,0.023]
[1736847649882,0.206377,96910.0,96898.0,0.023]
[1736847650450,0.206377,96910.0,96909.0,1.5]
[1736847650809,0.412754,96910.0,96909.0,1.5]
[1736847651037,0.206377,96910.0,96909.0,1.5]
[1736847651573,0.206377,96910.0,96909.0,1.50014566]
[1736847652422,0.206377,96910.0,96909.0,1.50214566]
[1736847655216,0.206377,96910.0,96909.0,0.00214566]
[1736847656460,0.206377,96910.0,96909.0,1.50214566]
[1736847658401,0.206377,96910.0,96909.0,1.50014566]
[1736847661101,0.20636,96918.0,96909.0,1.50014566]
[1736847661303,0.0482,96944.0,96910.0,0.023]
[1736847661521,0.206292,96950.0,96930.0,0.18440491]
[1736847661715,0.126,96962.0,96930.0,0.18440491]
[1736847661947,0.206292,96950.0,96940.0,1.5]
[1736847662150,0.02029586,96958.0,96941.0,0.023]
[1736847662529,0.008,96944.0,96941.0,0.023]
[1736847662867,0.02029586,96958.0,96944.0,0.023]
[1736847663112,0.206277,96957.0,96944.0,0.023]
[1736847663334,0.206277,96957.0,96944.0,0.0001457]
[1736847663736,0.206263,96964.0,96944.0,0.0001457]
[1736847663939,0.206253,96968.0,96948.0,0.023]
[1736847664147,0.001,96950.0,96949.0,0.12722692]
[1736847664505,0.206264,96964.0,96950.0,0.023]
[1736847664932,0.207264,96964.0,96950.0,0.023]
[1736847665336,0.206264,96964.0,96944.0,0.0001457]
[1736847665532,0.206271,96960.0,96949.0,0.008]
[1736847665779,0.02106471,96976.0,96944.0,0.0001457]
[1736847665984,0.20627,96960.0,96959.0,1.5]
[1736847666135,0.20627,96960.0,96944.0,0.0001457]
[1736847666136,0.206284,96954.0,96950.0,0.002]
[1736847666475,0.206285,96953.0,96951.0,0.007]
[1736847666691,0.206285,96953.0,96952.0,0.007]
[1736847667249,0.002,96949.0,96944.0,0.0001457]
[1736847667451,0.002,96949.0,96945.0,0.007]
[1736847668286,0.002,96949.0,96946.0,0.10525833]
[1736847668492,0.002,96949.0,96947.0,0.023]
[1736847668866,0.002,96949.0,96948.0,1.5]
[1736847669263,0.002,96949.0,96945.0,0.014]
[1736847669264,0.208294,96949.0,96945.0,0.001]
[1736847669492,0.414588,96949.0,96946.0,0.013]
[1736847669731,0.414588,96949.0,96946.0,0.006]
[1736847669913,0.51881492,96949.0,96945.0,0.001]
[1736847670115,0.208294,96949.0,96945.0,0.001]
[1736847670313,0.208294,96949.0,96944.0,0.0001457]
[1736847670513,0.002,96949.0,96944.0,0.0001457]
[1736847670690,0.002,96949.0,96947.0,0.001]
[1736847671244,0.002,96949.0,96948.0,0.006]
[1736847671381,0.003,96949.0,96948.0,0.006]
[1736847671609,0.003,96949.0,96944.0,0.0001457]
[1736847671994,0.002,96949.0,96947.0,0.001]
[1736847672412,0.002,96949.0,96944.0,0.0001457]
[1736847672610,0.002,96949.0,96948.0,0.003]
[1736847672956,0.208294,96949.0,96946.0,0.007]
[1736847673316,0.414588,96949.0,96944.0,0.0001457]
[1736847673967,0.414588,96949.0,96947.0,0.003]
[1736847675371,0.203294,96949.0,96944.0,0.0001457]
[1736847675655,0.203294,96949.0,96947.0,1.5]
[1736847676250,0.206284,96954.0,96947.0,1.503]
[1736847676448,0.206274,96958.0,96947.0,1.503]
[1736847676648,0.206295,96949.0,96947.0,1.503]
[1736847677076,0.0008533,96969.0,96949.0,0.023]
[1736847677408,0.0008533,96969.0,96959.0,0.18440491]
[1736847677568,0.0008533,96969.0,96968.0,1.523]
[1736847677772,0.0008533,96969.0,96968.0,1.53]
[1736847677979,0.0008533,96969.0,96968.0,1.507]
[1736847678741,0.0038533,96969.0,96968.0,1.5]
[1736847678939,0.0038533,96969.0,96968.0,1.507]
[1736847679626,0.0008533,96969.0,96968.0,1.507]
[1736847679912,0.0008533,96969.0,96968.0,1.514]
[1736847680085,0.0008533,96969.0,96968.0,1.509]
[1736847680484,0.0008533,96969.0,96968.0,1.507]
[1736847680785,0.0008533,96969.0,96968.0,1.502]
[1736847680983,0.0008533,96969.0,96968.0,1.509]
[1736847681187,0.0008533,96969.0,96968.0,1.502]
[1736847681365,0.0008533,96969.0,96968.0,1.507]
[1736847681567,0.0008533,96969.0,96968.0,0.016]
[1736847681968,0.0008533,96969.0,96968.0,0.002]
[1736847682351,0.0008533,96969.0,96968.0,0.009]
[1736847682564,0.0008533,96969.0,96968.0,0.002]
[1736847682935,0.0008533,96969.0,96968.0,0.003]
[1736847683105,0.0008533,96969.0,96968.0,1.502]
[1736847683508,0.0008533,96969.0,96968.0,1.533]
[1736847683713,0.0008533,96969.0,96968.0,1.531]
[1736847684496,0.0008533,96969.0,96968.0,1.533]
[1736847685776,0.0008533,96969.0,96968.0,1.51]
[1736847686410,0.0008533,96969.0,96968.0,1.508]
[1736847686870,0.0008533,96969.0,96968.0,1.502]
[1736847687052,0.0008533,96969.0,96968.0,1.51696]
[1736847687221,0.0008533,96969.0,96968.0,1.51496]
[1736847687628,0.0008533,96969.0,96968.0,1.51696]
[1736847687834,0.2071043,96969.0,96968.0,1.51696]
[1736847688032,0.2071043,96969.0,96968.0,1.51496]
[1736847688519,0.2071043,96969.0,96968.0,1.5]
[1736847688720,0.2071043,96969.0,96968.0,0.003]
[1736847689137,0.206271,96960.0,96957.0,0.00696]
[1736847689494,0.206271,96960.0,96950.0,0.18440491]
[1736847689654,0.206271,96960.0,96959.0,1.5]
[1736847690859,0.206264,96963.0,96959.0,1.5]
[1736847691394,0.41253,96963.0,96959.0,1.5]
[1736847691594,0.41253,96963.0,96960.0,0.00696]
[1736847692321,0.41253,96963.0,96959.0,1.501]
[1736847692527,0.4133824,96963.0,96961.0,0.00696]
[1736847693161,0.4133824,96963.0,96959.0,1.5]
[1736847693502,0.07207095,96979.0,96959.0,1.501]
[1736847693701,0.10422692,96978.0,96959.0,1.501]
[1736847693903,0.206266,96963.0,96959.0,1.501]
[1736847694715,0.206266,96963.0,96959.0,1.5]
[1736847695034,0.206266,96962.0,96961.0,0.001]
[1736847695216,0.31049292,96962.0,96961.0,0.001]
[1736847695445,0.43698109,96962.0,96961.0,0.001]
[1736847695716,0.206296,96948.0,96947.0,0.00179004]
[1736847696698,0.51052292,96948.0,96947.0,4e-08]
[1736847696889,0.306323,96935.0,96912.0,0.00696]
[1736847697092,0.206368,96914.0,96913.0,1.5]
[1736847699016,0.206368,96914.0,96909.0,0.00193667]
[1736847699017,0.206377,96910.0,96909.0,0.00193667]
[1736847700153,0.206345,96925.0,96909.0,0.00193667]
[1736847700354,0.001,96910.0,96909.0,0.00193667]
[1736847700551,0.206375,96911.0,96909.0,0.00193667]
[1736847700756,0.001,96910.0,96909.0,0.00193667]
[1736847701305,0.206366,96915.0,96909.0,0.00193667]
[1736847701519,0.206358,96919.0,96909.0,0.00193667]
[1736847701693,0.206369,96914.0,96909.0,0.00293667]
[1736847701912,0.206374,96912.0,96910.0,0.00696]
[1736847702576,0.412748,96912.0,96909.0,0.00393667]
[1736847702893,0.412748,96912.0,96909.0,0.00293667]
[1736847703246,0.412748,96912.0,96910.0,0.002]
[1736847703457,0.412748,96912.0,96909.0,0.00293667]
[1736847703650,0.412748,96912.0,96909.0,0.00193667]
[1736847704613,0.206377,96910.0,96909.0,0.00193667]
[1736847704914,0.41060392,96910.0,96909.0,0.00193667]
[1736847705666,0.43079789,96910.0,96909.0,0.00193667]
[1736847705871,0.60869789,96910.0,96909.0,6.7e-07]
[1736847706072,0.60869789,96910.0,96909.0,0.00100067]
[1736847706343,0.71292481,96910.0,96909.0,0.00100067]
[1736847706757,0.71292481,96910.0,96909.0,6.7e-07]
[1736847706971,0.60869789,96910.0,96909.0,6.7e-07]
[1736847707187,0.61169789,96910.0,96909.0,0.00100067]
[1736847707412,0.76169789,96910.0,96909.0,0.00100067]
[1736847707613,0.76169789,96910.0,96909.0,6.7e-07]
[1736847707765,0.87092481,96910.0,96909.0,6.7e-07]
[1736847708369,0.86592481,96910.0,96909.0,6.7e-07]
[1736847708598,0.86992481,96910.0,96909.0,6.7e-07]
[1736847708796,0.86992481,96910.0,96898.0,0.00178983]
[1736847708797,0.3064,96899.0,96898.0,0.00178983]
[1736847709063,0.49254542,96899.0,96898.0,0.00178983]
[1736847709626,0.41062692,96899.0,96898.0,0.00178983]
[1736847710440,0.41362692,96899.0,96898.0,0.00178983]
[1736847710868,0.41562692,96899.0,96898.0,0.00178983]
[1736847711661,0.1,96881.0,96879.0,0.0017913]
[1736847711895,0.41066692,96880.0,96879.0,0.0017913]
[1736847712128,0.46642361,96880.0,96879.0,0.00191927]
[1736847712604,0.206464,96869.0,96865.0,1.5]
[1736847714264,0.208464,96869.0,96865.0,1.5]
[1736847714674,0.02080097,96874.0,96851.0,0.00867193]
[1736847714902,0.206445,96878.0,96866.0,0.0819]
[1736847715547,0.206445,96878.0,96877.0,1.5]
[1736847716381,0.207445,96878.0,96877.0,1.5]
[1736847716841,0.206445,96878.0,96877.0,1.5]
[1736847717021,0.207445,96878.0,96877.0,1.5]
[1736847717384,0.206445,96878.0,96877.0,1.5]
[1736847717609,0.209445,96878.0,96877.0,1.5]
[1736847718018,0.207445,96878.0,96877.0,1.5]
[1736847718215,0.208445,96878.0,96877.0,1.5]
[1736847718815,0.31267192,96878.0,96877.0,1.5]
[1736847718972,0.207445,96878.0,96877.0,1.5]
[1736847719343,0.208445,96878.0,96877.0,1.5]
[1736847719817,0.207445,96878.0,96877.0,1.5]
[1736847720049,0.31267192,96878.0,96877.0,1.5]
[1736847720217,0.31167192,96878.0,96877.0,1.5]
[1736847720368,0.31067192,96878.0,96877.0,1.5]
[1736847720838,0.31167192,96878.0,96877.0,1.5]
[1736847721396,0.206464,96869.0,96857.0,0.00688]
[1736847721987,0.206464,96869.0,96864.0,1.5]
[1736847723038,0.31069092,96869.0,96868.0,0.00479172]
[1736847723217,0.31069092,96869.0,96868.0,0.00179172]
[1736847723394,0.31069092,96869.0,96868.0,0.00279172]
[1736847723595,0.31069092,96869.0,96868.0,0.00579172]
[1736847723800,0.31069092,96869.0,96868.0,0.00279172]
[1736847724001,0.33158079,96869.0,96868.0,0.00179172]
[1736847724318,0.206464,96869.0,96868.0,0.00579172]
[1736847724519,0.00014805,96880.0,96868.0,0.00479172]
[1736847724722,0.206452,96875.0,96869.0,0.00688]
[1736847725146,0.206452,96875.0,96874.0,1.5]
[1736847725358,0.31067892,96875.0,96874.0,1.5]
[1736847725764,0.206464,96869.0,96868.0,0.00079172]
[1736847725970,0.210464,96869.0,96868.0,0.00079172]
[1736847726165,0.206464,96869.0,96868.0,0.00079172]
[1736847727099,0.206452,96875.0,96868.0,0.00379172]
[1736847727358,0.206443,96879.0,96868.0,0.00079172]
[1736847727587,0.00014805,96880.0,96869.0,0.0764]
[1736847727788,0.00014805,96880.0,96869.0,1.5764]
[1736847728602,0.206443,96879.0,96869.0,1.5764]
[1736847729597,0.00014805,96880.0,96869.0,1.5764]
[1736847729798,0.002,96879.0,96869.0,1.5764]
[1736847730209,0.206445,96878.0,96869.0,1.5764]
[1736847730586,0.002853,96879.0,96869.0,1.5764]
[1736847731000,0.002853,96879.0,96875.0,0.023]
[1736847731170,0.002853,96879.0,96876.0,0.10525903]
[1736847731510,0.002853,96879.0,96878.0,1.729445]
[1736847731729,0.002853,96879.0,96878.0,1.83367192]
[1736847731866,0.000853,96879.0,96878.0,1.83367192]
[1736847732704,0.000853,96879.0,96878.0,1.84267192]
[1736847732917,0.000853,96879.0,96878.0,2.06907192]
[1736847733124,0.00014805,96880.0,96879.0,0.173]
[1736847733329,0.00014805,96880.0,96879.0,2.48898359]
[1736847733648,0.00014805,96880.0,96879.0,1.72283562]
[1736847733794,0.00014805,96880.0,96879.0,3.19478362]
[1736847734593,0.0008528,96910.0,96904.0,0.206388]
[1736847734845,0.00100096,96910.0,96905.0,0.00688]
[1736847735147,0.00100096,96910.0,96900.0,0.206398]
[1736847735148,0.00100096,96910.0,96906.0,0.00688]
[1736847735721,0.00100096,96910.0,96907.0,1.5]
[1736847737216,0.00100096,96910.0,96907.0,1.504]
[1736847737677,0.00100096,96910.0,96908.0,0.00688]
[1736847738305,0.00100096,96910.0,96909.0,1.5]
[1736847738640,0.206379,96909.0,96907.0,0.001]